bitfinex/quotes_SOLUSD_20241020
["timestamp","ask_amount","ask_price","bid_price","bid_amount"]
[1729434203647,7.20835871,159.54,159.44,20.0]
[1729434204348,7.20835871,159.54,159.42,15.9991]
[1729434204349,6.2684,159.53,159.42,15.9991]
[1729434204547,23.776884,159.53,159.42,15.9991]
[1729434204852,6.2691,159.52,159.42,15.9991]
[1729434205552,23.776884,159.53,159.42,15.9991]
[1729434205740,6.2692,159.51,159.42,15.9991]
[1729434207828,6.2689,159.52,159.42,15.9991]
[1729434208228,39.447984,159.53,159.42,15.9991]
[1729434208558,6.2695,159.51,159.42,15.9991]
[1729434209448,12.8205,159.55,159.43,20.0]
[1729434209633,6.2683,159.54,159.43,20.0]
[1729434209836,6.5526,159.55,159.43,20.0]
[1729434210034,6.2687,159.53,159.43,20.0]
[1729434210230,6.2695,159.51,159.43,20.0]
[1729434210441,6.2695,159.51,159.42,15.9991]
[1729434210641,43.776884,159.52,159.42,15.9991]
[1729434210854,6.2696,159.5,159.42,15.9991]
[1729434211734,6.2701,159.49,159.4,20.0]
[1729434212050,43.776884,159.52,159.4,20.0]
[1729434212051,6.2705,159.48,159.4,20.0]
[1729434212251,0.94060951,159.48,159.39,20.0]
[1729434213853,16.5441,159.51,159.41,20.0]
[1729434214030,6.5526,159.53,159.43,20.0]
[1729434214552,12.8211,159.53,159.43,20.0]
[1729434218369,6.2685,159.53,159.44,16.0254]
[1729434221452,6.269,159.52,159.44,16.0254]
[1729434221960,6.2684,159.53,159.44,16.0254]
[1729434222752,6.269,159.52,159.44,16.0254]
[1729434224544,6.2684,159.53,159.44,16.0254]
[1729434227749,6.2684,159.53,159.45,20.0]
[1729434230067,23.776884,159.54,159.45,20.0]
[1729434230369,30.045184,159.54,159.45,20.0]
[1729434230567,6.2685,159.53,159.45,20.0]
[1729434234556,17.48451599,159.55,159.45,20.0]
[1729434234879,6.2683,159.54,159.45,20.0]
[1729434240773,6.2685,159.53,159.45,20.0]
[1729434242578,6.2687,159.53,159.45,20.0]
[1729434249693,6.2688,159.52,159.44,16.0254]
[1729434252696,6.2684,159.53,159.44,16.0254]
[1729434253079,23.776884,159.54,159.44,16.0254]
[1729434253270,6.2688,159.52,159.44,16.0254]
[1729434255568,6.2685,159.53,159.44,16.0254]
[1729434255974,6.2684,159.53,159.44,16.0254]
[1729434256468,23.776884,159.54,159.44,16.0254]
[1729434256671,6.2689,159.52,159.44,16.0254]
[1729434257778,6.2685,159.53,159.44,16.0254]
[1729434258499,30.044984,159.54,159.44,16.0254]
[1729434259475,6.2684,159.53,159.44,16.0254]
[1729434260484,23.776884,159.54,159.44,16.0254]
[1729434260684,6.2688,159.52,159.44,16.0254]
[1729434263702,23.776884,159.54,159.44,16.0254]
[1729434264094,30.044984,159.54,159.44,16.0254]
[1729434265211,30.044984,159.54,159.45,20.0]
[1729434265504,23.776884,159.54,159.45,20.0]
[1729434265702,6.2685,159.53,159.45,20.0]
[1729434267613,30.044884,159.54,159.45,20.0]
[1729434268597,23.776884,159.54,159.45,20.0]
[1729434270485,0.94041599,159.55,159.45,20.0]
[1729434274315,7.20811599,159.55,159.45,20.0]
[1729434276093,6.70811599,159.55,159.45,20.0]
[1729434280093,6.2682,159.54,159.45,20.0]
[1729434281409,6.70811599,159.55,159.45,20.0]
[1729434286120,0.44041599,159.55,159.45,20.0]
[1729434290814,6.70831599,159.55,159.45,20.0]
[1729434292225,0.44041599,159.55,159.45,20.0]
[1729434294024,6.70811599,159.55,159.45,20.0]
[1729434294613,6.2683,159.54,159.45,20.0]
[1729434294926,6.70801599,159.55,159.45,20.0]
[1729434296916,0.44041599,159.55,159.45,20.0]
[1729434301211,6.70821599,159.55,159.45,20.0]
[1729434301828,6.2682,159.54,159.45,20.0]
[1729434302009,6.268,159.54,159.45,20.0]
[1729434302939,6.70801599,159.55,159.45,20.0]
[1729434304335,12.3512,159.57,159.45,20.0]
[1729434304508,6.2673,159.56,159.45,20.0]
[1729434305099,7.20774746,159.56,159.45,20.0]
[1729434306536,0.94044746,159.56,159.47,20.0]
[1729434311211,0.94044746,159.56,159.49,20.0]
[1729434311405,21.4284,159.59,159.49,20.0]
[1729434311950,22.36859978,159.59,159.49,20.0]
[1729434313220,6.2664,159.58,159.49,20.0]
[1729434317037,6.2668,159.57,159.49,20.0]
[1729434320413,6.2666,159.58,159.49,20.0]
[1729434322638,16.10249978,159.59,159.49,20.0]
[1729434322961,6.2664,159.58,159.49,20.0]
[1729434325350,6.267,159.57,159.49,20.0]
[1729434327849,6.2668,159.57,159.48,15.8903]
[1729434328731,6.2674,159.56,159.48,15.8903]
[1729434329134,6.2669,159.57,159.48,15.8903]
[1729434331724,23.776884,159.58,159.48,15.8903]
[1729434332046,6.2683,159.54,159.48,15.8903]
[1729434332431,6.2683,159.54,159.45,20.0]
[1729434332640,6.5841,159.55,159.44,15.3676]
[1729434332839,6.2688,159.52,159.44,15.3676]
[1729434333043,6.2693,159.51,159.44,15.3676]
[1729434333726,6.2688,159.52,159.44,15.3676]
[1729434333923,0.94031807,159.53,159.44,15.3676]
[1729434334730,12.852,159.55,159.45,20.0]
[1729434334957,13.79231807,159.55,159.45,20.0]
[1729434336849,6.2688,159.52,159.45,20.0]
[1729434337054,6.2688,159.52,159.44,15.3676]
[1729434337252,6.2692,159.51,159.44,15.3676]
[1729434337553,6.2692,159.51,159.4,16.45708439]
[1729434338134,6.2692,159.51,159.4,15.3676]
[1729434338651,6.1798,159.49,159.4,15.3676]
[1729434339060,6.2721,159.44,159.37,6.276]
[1729434339260,6.273,159.42,159.37,6.276]
[1729434339552,6.2731,159.41,159.37,6.276]
[1729434339927,6.2731,159.41,159.31,6.276]
[1729434340129,6.1798,159.42,159.31,6.276]
[1729434340482,0.94082125,159.44,159.33,6.276]
[1729434340631,0.94082125,159.44,159.35,6.276]
[1729434340956,0.94082125,159.44,159.37,22.5986]
[1729434341452,0.94082125,159.44,159.38,20.0]
[1729434343747,0.94082125,159.44,159.37,22.5986]
[1729434343954,7.21272125,159.44,159.33,22.5986]
[1729434345269,0.94082125,159.44,159.33,30.4230191]
[1729434345646,0.94082125,159.44,159.35,6.276]
[1729434345847,0.94082125,159.44,159.36,20.0]
[1729434346165,0.94082125,159.44,159.36,27.8244191]
[1729434347754,21.8837,159.49,159.36,27.8244191]
[1729434347950,15.6137,159.49,159.37,23.776884]
[1729434348171,15.6137,159.49,159.38,20.0]
[1729434349061,6.1798,159.5,159.4,20.0]
[1729434351180,12.4497,159.5,159.4,20.0]
[1729434351385,6.1798,159.5,159.4,20.0]
[1729434351681,6.2699,159.49,159.4,20.0]
[1729434352666,6.2704,159.48,159.4,20.0]
[1729434352867,6.2704,159.48,159.39,16.3226]
[1729434355266,23.776884,159.49,159.37,20.0]
[1729434355470,15.6137,159.46,159.37,20.0]
[1729434355978,6.2715,159.45,159.36,20.0]
[1729434356196,21.8849,159.46,159.36,20.0]
[1729434356674,21.8849,159.46,159.31,14.1004191]
[1729434356675,6.1798,159.42,159.31,6.276]
[1729434356883,6.1798,159.42,159.29,6.276]
[1729434356884,23.776884,159.41,159.29,6.276]
[1729434357084,6.2739,159.4,159.29,6.276]
[1729434357460,7.2149947,159.4,159.29,6.276]
[1729434357878,7.2149947,159.4,159.28,1.08992361]
[1729434358079,0.9410947,159.4,159.28,1.08992361]
[1729434358278,6.2739,159.39,159.25,0.69073673]
[1729434358461,6.2739,159.39,159.25,1.78078127]
[1729434358789,23.776884,159.39,159.25,1.78078127]
[1729434358966,6.275,159.37,159.25,1.09004454]
[1729434359161,6.2751,159.36,159.25,1.09004454]
[1729434359566,6.2756,159.35,159.23,0.69082349]
[1729434359766,6.2756,159.35,159.22,16.3226]
[1729434360063,6.2756,159.35,159.22,17.41302217]
[1729434360692,23.776884,159.37,159.22,17.41302217]
[1729434360987,30.051584,159.37,159.23,23.776884]
[1729434361284,30.051584,159.37,159.26,6.276]
[1729434361789,30.051584,159.37,159.23,23.776884]
[1729434361790,6.2751,159.36,159.28,6.276]
[1729434363390,22.8378,159.38,159.3,6.276]
[1729434363986,6.2744,159.38,159.3,6.276]
[1729434364777,6.2739,159.39,159.3,6.276]
[1729434365088,6.2743,159.38,159.3,6.276]
[1729434368279,23.776884,159.39,159.3,6.276]
[1729434368584,6.2752,159.36,159.3,6.276]
[1729434370465,6.2747,159.37,159.3,6.276]
[1729434372572,6.2747,159.37,159.29,16.0599]
[1729434373469,6.2744,159.38,159.29,16.0599]
[1729434373974,0.9410947,159.4,159.3,20.0]
[1729434374279,6.274,159.39,159.3,20.0]
[1729434375467,7.2146947,159.4,159.3,20.0]
[1729434377381,0.9410947,159.4,159.3,20.0]
[1729434377688,7.2148947,159.4,159.3,20.0]
[1729434378386,6.2741,159.39,159.3,20.0]
[1729434382791,6.2746,159.38,159.3,20.0]
[1729434383987,23.776884,159.39,159.29,16.0599]
[1729434384177,6.2752,159.36,159.25,16.4296]
[1729434384576,12.6516,159.36,159.25,16.4296]
[1729434384782,6.2758,159.35,159.25,16.4296]
[1729434386087,22.65,159.35,159.25,16.4296]
[1729434386681,16.3742,159.35,159.25,16.4296]
[1729434386892,6.2763,159.33,159.25,16.4296]
[1729434387677,23.776884,159.34,159.25,16.4296]
[1729434387887,6.2766,159.33,159.25,16.4296]
[1729434388092,7.21812474,159.33,159.25,16.4296]
[1729434388502,6.2766,159.32,159.25,16.4296]
[1729434389496,0.94152474,159.33,159.22,20.0]
[1729434389497,6.2771,159.31,159.22,20.0]
[1729434390605,6.2773,159.31,159.22,20.0]
[1729434392502,23.776884,159.32,159.22,20.0]
[1729434392806,6.2781,159.29,159.21,16.4296]
[1729434393103,6.2786,159.27,159.2,6.28]
[1729434393581,30.055884,159.26,159.18,6.28]
[1729434393896,23.776884,159.26,159.18,6.28]
[1729434394203,30.055884,159.26,159.18,6.28]
[1729434394406,6.2802,159.23,159.18,6.28]
[1729434394584,23.776884,159.26,159.15,6.28]
[1729434395279,23.776884,159.22,159.14,16.4296]
[1729434395598,23.776884,159.23,159.14,16.4296]
[1729434397082,12.6566,159.24,159.14,16.4296]
[1729434397293,6.2802,159.23,159.14,16.4296]
[1729434397879,6.3764,159.24,159.15,20.0]
[1729434398094,12.6563,159.24,159.15,20.0]
[1729434398409,12.6563,159.24,159.14,16.4296]
[1729434398896,6.2803,159.23,159.14,16.4296]
[1729434399104,6.2807,159.22,159.14,16.4296]
[1729434399278,22.4597,159.22,159.12,0.6099336]
[1729434400511,6.2819,159.19,159.12,0.6099336]
[1729434401409,6.2829,159.17,159.12,0.6099336]
[1729434402421,6.2822,159.18,159.12,0.6099336]
[1729434402709,7.22467427,159.18,159.12,0.6099336]
[1729434403011,13.45907427,159.18,159.12,0.6099336]
[1729434403997,7.17687427,159.18,159.12,0.6099336]
[1729434404198,23.776884,159.17,159.12,0.6099336]
[1729434404694,26.283,159.16,159.12,0.6099336]
[1729434405395,20.0,159.16,159.12,0.6099336]
[1729434405920,7.17687427,159.18,159.12,0.6099336]
[1729434406418,13.45927427,159.18,159.12,0.6099336]
[1729434406814,6.2826,159.17,159.12,0.6099336]
[1729434407010,13.45907427,159.18,159.12,0.6099336]
[1729434407311,23.776884,159.17,159.12,0.6099336]
[1729434407892,13.35689624,159.25,159.13,15.7971]
[1729434407893,6.53990213,159.22,159.13,15.7971]
[1729434408115,6.2804,159.23,159.13,15.7971]
[1729434408420,6.281,159.21,159.13,15.7971]
[1729434409820,23.776884,159.23,159.13,15.7971]
[1729434410003,23.776884,159.22,159.13,15.7971]
[1729434410325,30.057784,159.22,159.14,20.0]
[1729434411015,18.83,159.21,159.14,20.0]
[1729434411217,30.057784,159.22,159.14,20.0]
[1729434411399,30.057784,159.22,159.13,15.7971]
[1729434411596,23.776884,159.22,159.13,15.7971]
[1729434411797,6.281,159.21,159.13,15.7971]
[1729434412015,7.2234778,159.21,159.13,15.7971]
[1729434413126,23.776884,159.2,159.13,15.7971]
[1729434413294,6.2819,159.19,159.12,0.6099336]
[1729434414812,30.058284,159.2,159.12,0.6099336]
[1729434416205,23.776884,159.2,159.12,0.6099336]
[1729434416525,20.9424778,159.21,159.12,0.6099336]
[1729434416896,27.2235778,159.21,159.12,0.6099336]
[1729434417414,30.058584,159.2,159.12,0.6099336]
[1729434417993,6.2818,159.19,159.12,0.6099336]
[1729434419299,23.776884,159.18,159.12,0.6099336]
[1729434419521,6.2825,159.17,159.12,0.6099336]
[1729434421011,42.606884,159.18,159.12,0.6099336]
[1729434421217,30.060084,159.16,159.12,0.6099336]
[1729434421398,6.2834,159.15,159.12,0.6099336]
[1729434422231,23.776884,159.16,159.12,0.6099336]
[1729434422398,25.1136,159.15,159.12,0.6099336]
[1729434422600,24.71956619,159.14,159.12,0.6099336]
[1729434423323,31.00326619,159.14,159.12,0.6099336]
[1729434423734,24.71956619,159.14,159.12,0.6099336]
[1729434424727,6.2841,159.13,159.12,0.6099336]
[1729434424906,30.060984,159.13,159.12,0.6099336]
[1729434426213,23.776884,159.13,159.12,0.6099336]
[1729434432237,30.060984,159.13,159.12,0.6099336]
[1729434432416,50.060984,159.13,159.12,0.6099336]
[1729434432824,43.776884,159.13,159.12,0.6099336]
[1729434433336,23.776884,159.13,159.12,0.6099336]
[1729434437736,0.94268219,159.14,159.12,0.6099336]
[1729434439233,0.9424778,159.21,159.12,0.6099336]
[1729434444638,0.9424778,159.21,159.15,15.1983]
[1729434444947,0.9424778,159.21,159.16,20.0]
[1729434446952,6.2796,159.25,159.16,20.0]
[1729434447554,23.776884,159.24,159.16,20.0]
[1729434447729,23.776884,159.25,159.16,20.0]
[1729434448060,24.71906166,159.25,159.16,20.0]
[1729434448249,30.99856166,159.25,159.16,20.0]
[1729434457363,24.71906166,159.25,159.16,20.0]
[1729434457837,0.94217766,159.25,159.16,20.0]
[1729434459250,7.22157766,159.25,159.16,20.0]
[1729434461471,0.94217766,159.25,159.16,20.0]
[1729434461972,0.94217766,159.25,159.16,28.57030156]
[1729434462378,0.94217766,159.25,159.18,20.0]
[1729434467845,30.054784,159.29,159.18,20.0]
[1729434469964,30.99662884,159.29,159.18,20.0]
[1729434470877,6.2783,159.28,159.18,20.0]
[1729434472451,6.2787,159.27,159.18,20.0]
[1729434473468,24.71872884,159.29,159.18,20.0]
[1729434473958,6.2787,159.27,159.18,20.0]
[1729434474568,24.71872884,159.29,159.18,20.0]
[1729434474746,6.2797,159.25,159.18,20.0]
[1729434476469,40.41362884,159.29,159.18,20.0]
[1729434476656,6.279,159.26,159.18,20.0]
[1729434477063,24.71872884,159.29,159.18,20.0]
[1729434477249,6.2787,159.27,159.18,20.0]
[1729434481653,30.99662884,159.29,159.18,20.0]
[1729434481863,0.94184484,159.29,159.2,20.0]
[1729434482169,0.94184484,159.29,159.22,20.0]
[1729434484675,6.2763,159.33,159.22,20.0]
[1729434485754,22.2131,159.35,159.22,28.57030156]
[1729434485957,28.4888,159.35,159.24,20.0]
[1729434486252,29.43035223,159.35,159.24,20.0]
[1729434486454,13.54925223,159.35,159.24,20.0]
[1729434486954,6.2759,159.34,159.24,20.0]
[1729434487154,7.27375223,159.35,159.24,20.0]
[1729434487355,6.2763,159.33,159.22,20.0]
[1729434488252,7.27375223,159.35,159.22,20.0]
[1729434488451,6.2766,159.32,159.22,20.0]
[1729434489055,6.2758,159.34,159.22,28.57030156]
[1729434489965,23.776884,159.34,159.22,28.57030156]
[1729434490156,23.776884,159.32,159.22,20.0]
[1729434490664,6.277,159.31,159.22,20.0]
[1729434492457,23.776884,159.32,159.22,20.0]
[1729434492779,6.2774,159.3,159.22,20.0]
[1729434492991,23.776884,159.32,159.22,20.0]
[1729434493282,6.2779,159.29,159.22,20.0]
[1729434493482,7.2196768,159.29,159.22,20.0]
[1729434493678,6.2779,159.29,159.22,20.0]
[1729434493863,23.776884,159.3,159.21,16.5102]
[1729434494073,6.2778,159.29,159.17,25.08050156]
[1729434494382,6.2791,159.26,159.18,20.0]
[1729434494766,0.94186227,159.29,159.18,20.0]
[1729434495169,0.94186227,159.29,159.2,20.0]
[1729434495684,6.2785,159.28,159.18,20.0]
[1729434497086,6.2788,159.27,159.18,20.0]
[1729434497260,0.94186227,159.29,159.18,20.0]
[1729434497460,0.94186227,159.29,159.18,28.57030156]
[1729434498685,6.2782,159.28,159.17,16.5102]
[1729434499057,6.2789,159.27,159.17,16.5102]
[1729434499275,6.2792,159.26,159.17,16.5102]
[1729434499462,23.776884,159.28,159.17,16.5102]
[1729434499666,20.94186227,159.29,159.17,16.5102]
[1729434499858,0.94186227,159.29,159.17,16.5102]
[1729434500078,0.94186227,159.29,159.18,8.57030156]
[1729434500979,0.94186227,159.29,159.19,20.0]
[1729434501178,7.21966227,159.29,159.19,20.0]
[1729434501779,0.94186227,159.29,159.19,20.0]
[1729434501975,0.94186227,159.29,159.2,43.776884]
[1729434504082,6.3687,159.34,159.22,43.776884]
[1729434504288,0.94155223,159.35,159.22,43.776884]
[1729434504586,0.94155223,159.35,159.24,43.776884]
[1729434505089,0.94155223,159.35,159.24,39.276884]
[1729434505792,0.94155223,159.35,159.25,16.4239]
[1729434506084,0.94155223,159.35,159.26,23.776884]
[1729434507067,0.94155223,159.35,159.27,20.0]
[1729434508107,21.521,159.41,159.29,43.776884]
[1729434509282,22.46215451,159.41,159.3,16.4239]
[1729434509573,16.18875451,159.41,159.31,20.0]
[1729434509876,0.94115451,159.41,159.31,20.0]
[1729434510194,0.94115451,159.41,159.33,20.0]
[1729434511289,6.3687,159.42,159.33,20.0]
[1729434511473,15.2476,159.45,159.32,23.776884]
[1729434511474,21.5193,159.45,159.35,20.0]
[1729434511673,15.2476,159.45,159.35,20.0]
[1729434511882,6.2719,159.44,159.35,20.0]
[1729434512086,6.2724,159.43,159.33,20.91]
[1729434512490,7.21290623,159.44,159.33,20.91]
[1729434512971,7.21290623,159.44,159.33,20.0]
[1729434515879,6.2726,159.43,159.33,20.0]
[1729434516900,23.776884,159.43,159.33,20.0]
[1729434517085,6.2738,159.4,159.3,16.4239]
[1729434517297,20.94100623,159.44,159.3,16.4239]
[1729434517298,6.2731,159.41,159.3,16.4239]
[1729434517598,20.94100623,159.44,159.31,8.57030156]
[1729434517785,6.2723,159.43,159.31,8.57030156]
[1729434518385,20.94100623,159.44,159.32,43.776884]
[1729434518574,27.21300623,159.44,159.33,8.57030156]
[1729434518774,27.21300623,159.44,159.34,20.0]
[1729434518980,6.2723,159.43,159.34,20.0]
[1729434519796,20.94100623,159.44,159.34,20.0]
[1729434519993,6.2723,159.43,159.34,20.0]
[1729434522903,27.21300623,159.44,159.34,20.0]
[1729434523111,0.94100623,159.44,159.36,20.0]
[1729434523480,7.21300623,159.44,159.36,20.0]
[1729434524101,0.94100623,159.44,159.36,20.0]
[1729434525981,7.21320623,159.44,159.36,20.0]
[1729434526683,6.2723,159.43,159.36,20.0]
[1729434527396,6.2727,159.42,159.36,20.0]
[1729434528280,6.2731,159.41,159.36,20.0]
[1729434528477,0.94100623,159.44,159.31,15.5445]
[1729434528696,6.2732,159.41,159.32,20.0]
[1729434529095,6.2727,159.42,159.32,20.0]
[1729434529308,6.2738,159.4,159.32,20.0]
[1729434530004,15.4465,159.43,159.32,20.0]
[1729434530221,6.2743,159.39,159.32,20.0]
[1729434530392,6.2744,159.38,159.32,20.0]
[1729434530588,31.1281,159.43,159.32,20.0]
[1729434530589,6.2742,159.39,159.32,20.0]
[1729434531404,6.2735,159.4,159.32,20.0]
[1729434531707,0.94100623,159.44,159.32,26.6034]
[1729434531914,27.21320623,159.44,159.32,35.17370156]
[1729434532293,27.21320623,159.44,159.34,20.0]
[1729434532513,6.2723,159.43,159.34,20.0]
[1729434532689,20.94100623,159.44,159.34,20.0]
[1729434532887,6.2731,159.41,159.33,20.0]
[1729434534108,6.273,159.42,159.33,20.0]
[1729434534514,20.94100623,159.44,159.33,20.0]
[1729434534515,6.2731,159.41,159.33,20.0]
[1729434534713,6.2998,159.39,159.23,6.28]
[1729434535009,6.2998,159.39,159.26,22.1479]
[1729434535010,6.2743,159.38,159.26,22.1479]
[1729434536209,6.2743,159.38,159.27,20.0]
[1729434536402,6.2748,159.37,159.27,20.0]
[1729434538221,6.2748,159.37,159.26,15.5445]
[1729434538222,23.776884,159.36,159.26,15.5445]
[1729434538607,6.2763,159.33,159.26,15.5445]
[1729434539790,6.2763,159.33,159.27,20.0]
[1729434540115,6.2756,159.35,159.27,20.0]
[1729434540641,7.21654473,159.37,159.27,20.0]
[1729434541690,6.2751,159.36,159.27,20.0]
[1729434544442,0.94154473,159.37,159.29,20.0]
[1729434544609,0.94154473,159.37,159.31,43.776884]
[1729434544808,0.94154473,159.37,159.33,20.0]
[1729434545014,0.94100623,159.44,159.35,20.0]
[1729434545943,0.94100623,159.44,159.33,43.776884]
[1729434547120,7.21310623,159.44,159.33,43.776884]
[1729434547536,0.94100623,159.44,159.33,43.776884]
[1729434551325,7.21310623,159.44,159.33,43.776884]
[1729434557539,6.2727,159.43,159.33,43.776884]
[1729434558337,6.2736,159.4,159.33,43.776884]
[1729434558532,6.2736,159.4,159.33,20.0]
[1729434558853,6.2731,159.41,159.33,20.0]
[1729434559951,0.94100623,159.44,159.33,20.0]
[1729434560334,6.2728,159.42,159.33,20.0]
[1729434560634,6.2731,159.41,159.33,20.0]
[1729434561034,0.94100623,159.44,159.33,20.0]
[1729434561238,6.4267,159.41,159.33,20.0]
[1729434561447,6.4267,159.41,159.28,39.000584]
[1729434561744,6.2753,159.36,159.28,15.2237]
[1729434562367,0.94130129,159.37,159.28,15.2237]
[1729434562538,6.2762,159.34,159.24,15.2237]
[1729434562741,0.94130129,159.37,159.24,15.2237]
[1729434562951,6.2764,159.33,159.24,15.2237]
[1729434563549,6.2758,159.35,159.24,15.2237]
[1729434564646,6.2758,159.35,159.25,20.0]
[1729434565047,16.4408,159.36,159.27,20.0]
[1729434565563,22.716,159.36,159.27,20.0]
[1729434565862,6.2758,159.35,159.27,20.0]
[1729434566047,6.2764,159.33,159.25,20.0]
[1729434566253,6.2759,159.34,159.25,20.0]
[1729434566669,6.2762,159.33,159.25,20.0]
[1729434567145,6.2754,159.35,159.25,20.0]
[1729434570962,6.276,159.34,159.25,20.0]
[1729434571152,6.276,159.34,159.24,15.2237]
[1729434571972,6.2765,159.33,159.24,15.2237]
[1729434572370,6.2765,159.33,159.25,20.0]
[1729434575259,6.2758,159.34,159.25,20.0]
[1729434575456,6.2765,159.33,159.25,20.0]
[1729434575656,6.4267,159.35,159.25,20.0]
[1729434575857,6.4267,159.35,159.26,23.776884]
[1729434576057,0.94130129,159.37,159.27,20.0]
[1729434577168,7.21600129,159.37,159.27,20.0]
[1729434577353,6.2752,159.36,159.27,20.0]
[1729434577550,6.2752,159.36,159.29,20.0]
[1729434577757,0.94130129,159.37,159.27,20.0]
[1729434578571,7.21600129,159.37,159.27,20.0]
[1729434583158,0.94130129,159.37,159.27,20.0]
[1729434584183,7.21600129,159.37,159.27,20.0]
[1729434584776,0.94130129,159.37,159.27,20.0]
[1729434585086,0.94130129,159.37,159.29,20.0]
[1729434585258,0.94130129,159.37,159.31,20.0]
[1729434586965,6.5254,159.43,159.31,20.0]
[1729434587858,12.7979,159.43,159.31,20.0]
[1729434591290,6.5254,159.43,159.33,20.0]
[1729434593206,6.2727,159.42,159.31,20.0]
[1729434601283,23.776884,159.42,159.31,20.0]
[1729434601471,6.2741,159.39,159.31,20.0]
[1729434601676,7.21526412,159.39,159.31,20.0]
[1729434602286,0.94116412,159.39,159.31,20.0]
[1729434602587,7.21516412,159.39,159.31,20.0]
[1729434602793,0.94116412,159.39,159.31,20.0]
[1729434608999,20.0,159.42,159.31,20.0]
[1729434609197,26.2727,159.42,159.31,20.0]
[1729434610601,6.5254,159.43,159.35,20.0]
[1729434610904,0.94100623,159.44,159.37,20.0]
[1729434612380,6.2556,159.47,159.37,20.0]
[1729434613700,6.2556,159.47,159.39,20.0]
[1729434613903,15.6324,159.48,159.39,20.0]
[1729434614983,6.2556,159.51,159.39,20.0]
[1729434615606,6.2556,159.51,159.41,20.0]
[1729434615903,7.19615709,159.51,159.41,20.0]
[1729434616310,12.5235,159.55,159.43,20.0]
[1729434616603,6.2682,159.54,159.43,20.0]
[1729434616993,6.2688,159.52,159.43,20.0]
[1729434617193,7.20922996,159.52,159.43,20.0]
[1729434617590,6.2694,159.51,159.43,20.0]
[1729434617791,6.2705,159.48,159.38,6.0846]
[1729434618413,6.5824,159.49,159.38,6.0846]
[1729434618913,15.8962,159.51,159.38,6.0846]
[1729434619110,15.8962,159.51,159.4,23.776884]
[1729434619299,15.8962,159.51,159.41,20.0]
[1729434620000,22.1654,159.51,159.41,20.0]
[1729434620601,15.8962,159.51,159.41,20.0]
[1729434621803,0.94042996,159.52,159.42,23.776884]
[1729434622012,6.5824,159.53,159.45,20.0]
[1729434623110,7.52293438,159.53,159.45,20.0]
[1729434625116,7.52293438,159.53,159.44,20.0]
[1729434625296,13.79133438,159.53,159.44,20.0]
[1729434627204,0.94053438,159.53,159.44,20.0]
[1729434627419,15.8962,159.55,159.46,20.0]
[1729434627718,22.1638,159.55,159.46,20.0]
[1729434628406,22.1638,159.55,159.44,20.0]
[1729434628711,23.1041044,159.55,159.44,20.0]
[1729434629398,23.1041044,159.55,159.46,20.0]
[1729434630001,0.9403044,159.55,159.46,20.0]
[1729434631820,0.9403044,159.55,159.48,20.0]
[1729434632121,12.8488,159.58,159.48,20.0]
[1729434633106,13.78898509,159.58,159.48,20.0]
[1729434634412,6.267,159.57,159.48,20.0]
[1729434635327,13.78898509,159.58,159.48,20.0]
[1729434637015,7.52258509,159.58,159.49,23.776884]
[1729434637222,13.78908509,159.58,159.5,20.0]
[1729434637423,6.2668,159.57,159.5,20.0]